bitfinex/quotes_ETHUSD_20260213
["timestamp","ask_amount","ask_price","bid_price","bid_amount"]
[1770984865042,2.86544477,1959.1,1958.8,0.001]
[1770984865219,1.76502164,1959.1,1958.8,0.001]
[1770984865417,1.27609616,1959.1,1958.8,0.001]
[1770984866315,1.76502164,1959.1,1958.8,0.001]
[1770984866942,1.76502164,1959.1,1958.9,0.001]
[1770984867140,0.48892548,1959.0,1958.7,0.92]
[1770984867340,7.25246492,1959.0,1958.5,2.059]
[1770984867646,1.27809616,1959.1,1958.5,2.55014297]
[1770984867818,1.09971637,1959.0,1958.5,2.55014297]
[1770984868017,3.42402164,1959.1,1958.5,2.55014297]
[1770984868345,1.0996278,1959.0,1958.5,3.82662485]
[1770984868515,3.42402164,1959.1,1958.5,3.82662485]
[1770984868715,1.09935964,1959.0,1958.5,3.82662485]
[1770984868945,3.42402164,1959.1,1958.5,3.82662485]
[1770984869143,2.37555838,1959.0,1958.5,2.55014297]
[1770984869441,1.27618957,1959.0,1958.5,2.55014297]
[1770984870226,1.27618957,1959.0,1958.5,3.82662012]
[1770984871251,1.27618957,1959.0,1958.5,2.55014297]
[1770984871548,2.14792548,1959.1,1958.5,3.82661853]
[1770984871850,1.659,1959.1,1958.6,0.47813692]
[1770984873848,0.002,1959.1,1958.7,1.27635676]
[1770984874153,0.002,1959.1,1958.7,1.75449368]
[1770984875822,0.002,1959.1,1958.7,0.47813692]
[1770984878252,0.49647941,1959.1,1958.5,0.49007147]
[1770984878455,1.59413926,1959.0,1958.4,3.82561993]
[1770984878643,0.49447941,1959.0,1958.4,3.82561993]
[1770984878839,0.49447941,1959.0,1958.4,2.54907147]
[1770984879044,0.49447941,1959.0,1958.8,0.001]
[1770984879262,0.49447941,1958.8,1958.2,0.49107147]
[1770984879458,0.49447941,1958.8,1958.2,0.001]
[1770984880063,1.77083617,1958.7,1958.2,0.001]
[1770984881955,0.49447941,1958.6,1958.2,0.001]
[1770984882854,1.2764871,1958.5,1958.2,0.001]
[1770984883045,1.77095004,1958.6,1958.2,0.001]
[1770984883247,1.27647063,1958.6,1958.2,0.001]
[1770984884236,1.2762916,1958.9,1958.2,0.49107147]
[1770984884466,1.59422027,1958.8,1958.2,0.49107147]
[1770984884635,1.09974086,1958.7,1958.2,0.49107147]
[1770984885237,2.37611004,1958.7,1958.2,1.7677419]
[1770984885437,1.27636918,1958.7,1958.2,1.7677419]
[1770984887239,1.10055671,1958.6,1958.2,1.7677419]
[1770984887440,5.10518464,1958.8,1958.2,1.7677419]
[1770984887648,1.10055672,1958.7,1958.2,1.7677419]
[1770984887863,1.10055672,1958.6,1958.2,1.7677419]
[1770984888061,5.59966405,1958.8,1958.2,0.49107147]
[1770984888265,0.49447941,1958.6,1958.2,0.001]
[1770984889161,5.59966405,1958.8,1958.2,0.001]
[1770984889347,1.10105302,1958.7,1958.2,0.001]
[1770984889546,1.10105302,1958.6,1958.2,0.001]
[1770984889963,2.37748109,1958.6,1958.2,0.001]
[1770984890168,1.27642807,1958.6,1958.2,0.001]
[1770984890357,1.10125577,1958.5,1958.2,0.001]
[1770984890559,1.27642807,1958.6,1958.2,0.001]
[1770984890759,1.10129262,1958.5,1958.2,0.001]
[1770984890973,1.27642807,1958.6,1958.2,0.001]
[1770984891268,1.27642807,1958.6,1958.0,0.00253886]
[1770984891269,7.25801885,1958.4,1958.0,0.00253886]
[1770984891467,1.27668266,1958.2,1958.0,0.00253886]
[1770984892068,8.53470151,1958.2,1957.9,0.001]
[1770984892273,1.77116207,1958.2,1957.9,0.001]
[1770984896180,6.77852965,1958.3,1957.9,0.001]
[1770984896181,1.09976432,1958.1,1957.9,0.001]
[1770984896387,2.94866962,1958.3,1957.9,0.001]
[1770984896546,1.09957452,1958.2,1957.9,0.001]
[1770984896883,1.672,1958.3,1957.9,0.49107147]
[1770984897052,1.09958164,1958.2,1957.9,0.49107147]
[1770984897252,1.672,1958.3,1957.9,0.49107147]
[1770984897454,1.09939357,1958.2,1957.9,0.49107147]
[1770984897677,1.672,1958.3,1957.9,0.49107147]
[1770984897981,1.09939473,1958.2,1957.9,0.49107147]
[1770984898184,1.672,1958.3,1957.9,0.49107147]
[1770984898383,1.09927618,1958.2,1957.9,0.49107147]
[1770984898574,1.672,1958.3,1957.9,0.49107147]
[1770984898753,1.09926486,1958.2,1957.9,0.49107147]
[1770984898954,1.672,1958.3,1957.9,1.76794656]
[1770984899165,1.09926427,1958.2,1957.9,0.49107147]
[1770984899355,2.9486207,1958.3,1957.9,0.49107147]
[1770984899555,1.09914602,1958.2,1957.9,0.49107147]
[1770984899778,2.9486207,1958.3,1957.9,0.49107147]
[1770984899982,1.09914983,1958.2,1957.9,0.49107147]
[1770984900189,1.672,1958.3,1957.9,0.49107147]
[1770984900378,1.09915174,1958.2,1957.9,0.49107147]
[1770984900683,2.94862484,1958.3,1957.9,0.49107147]
[1770984900941,1.0991497,1958.2,1957.9,0.001]
[1770984901057,3.42461694,1958.3,1957.9,0.001]
[1770984901256,1.57510419,1958.2,1957.9,0.001]
[1770984901553,0.4759921,1958.2,1957.9,0.001]
[1770984901780,1.57500831,1958.1,1957.7,0.001]
[1770984901987,0.4759921,1958.1,1957.7,0.001]
[1770984902284,0.4759921,1958.1,1957.5,0.001]
[1770984902285,7.24917052,1957.8,1957.4,0.001]
[1770984902487,1.679,1958.0,1957.5,0.49677231]
[1770984902673,1.09830006,1957.9,1957.5,0.49677231]
[1770984902982,2.95581442,1958.0,1957.5,0.49677231]
[1770984903196,1.679,1958.0,1957.6,0.49677231]
[1770984903362,3.87665606,1958.3,1957.6,0.49677231]
[1770984903559,1.0983909,1958.2,1957.6,0.49677231]
[1770984903762,1.0983909,1958.1,1957.6,0.49677231]
[1770984903950,1.27661026,1958.4,1957.6,0.49677231]
[1770984904150,1.09842888,1958.3,1957.6,0.49677231]
[1770984904465,0.002,1958.2,1958.0,0.001]
[1770984905851,1.57450386,1958.1,1958.0,0.001]
[1770984906052,1.57450386,1958.1,1957.4,2.055]
[1770984906377,0.4759921,1958.0,1957.4,2.055]
[1770984906978,1.27687828,1957.9,1957.4,2.055]
[1770984907191,1.2768651,1958.0,1957.4,3.82896995]
[1770984908506,0.002,1958.2,1957.5,0.49677231]
[1770984908698,1.09921935,1958.1,1957.6,7.26995073]
[1770984909010,1.09922369,1958.0,1957.6,0.49677231]
[1770984909210,1.2787284,1958.2,1957.6,1.77384011]
[1770984909518,1.09940703,1958.1,1957.6,1.2770678]
[1770984909671,1.2787284,1958.2,1957.6,1.2770678]
[1770984909871,1.09954338,1958.1,1957.6,1.2770678]
[1770984910075,1.09954462,1958.0,1957.6,1.2770678]
[1770984910307,1.2787284,1958.2,1957.6,1.2770678]
[1770984910472,1.09965981,1958.1,1957.6,0.49677231]
[1770984910675,1.2787284,1958.2,1957.4,2.55177231]
[1770984910676,1.0996546,1958.0,1957.4,2.55177231]
[1770984910876,1.7547205,1958.2,1957.4,3.82896959]
[1770984911175,1.27681307,1958.0,1957.4,3.82896959]
[1770984911573,1.27681307,1958.0,1957.5,0.49677231]
[1770984913208,5.10702053,1958.1,1957.5,0.49677231]
[1770984913413,1.10007187,1958.0,1957.5,1.77390842]
[1770984913707,1.27674786,1958.1,1957.5,1.77390842]
[1770984913909,1.09995925,1958.0,1957.5,1.77390842]
[1770984914091,1.27674786,1958.1,1957.5,1.77390842]
[1770984914291,1.09995658,1958.0,1957.5,1.77390842]
[1770984914488,1.27674786,1958.1,1957.5,1.77390842]
[1770984914701,1.10010963,1958.0,1957.5,1.77390842]
[1770984914903,1.27674786,1958.1,1957.5,1.77390842]
[1770984915107,5.10884515,1958.2,1957.6,0.49677231]
[1770984915108,1.1001093,1958.0,1957.6,0.49677231]
[1770984915405,1.27868895,1958.2,1957.6,1.77384504]
[1770984915607,1.1003084,1958.1,1957.6,1.77384504]
[1770984915821,1.1003084,1958.0,1957.6,0.49677231]
[1770984916015,1.27868895,1958.2,1957.6,0.49677231]
[1770984916195,1.27868895,1958.2,1957.5,0.49677231]
[1770984916196,1.10037404,1958.1,1957.5,0.49677231]
[1770984916398,1.27868895,1958.2,1957.4,2.055]
[1770984916399,1.57636614,1958.0,1957.4,2.055]
[1770984916600,1.10037404,1957.9,1957.4,2.055]
[1770984916926,1.10037404,1957.9,1957.5,0.49677231]
[1770984917222,1.75468105,1958.2,1957.5,0.49777231]
[1770984917429,0.002,1957.9,1957.5,1.77490344]
[1770984918123,0.002,1957.9,1957.6,0.49677231]
[1770984919525,0.002,1957.9,1957.6,1.77380981]
[1770984919698,0.002,1957.9,1957.7,0.49677231]
[1770984921523,0.002,1957.9,1957.8,1.2769435]
[1770984921724,1.10470936,1957.9,1957.8,1.2769435]
[1770984922037,0.002,1958.2,1957.8,1.77371581]
[1770984924038,0.002,1958.2,1957.8,0.49677231]
[1770984924238,0.002,1958.2,1957.6,1.77380253]
[1770984925035,0.002,1958.2,1957.6,1.77383982]
[1770984925232,0.4779921,1958.2,1957.6,1.77383982]
[1770984925409,0.4779921,1958.2,1957.6,2.07]
[1770984925610,1.27674786,1958.1,1957.6,2.07]
[1770984926012,1.27674786,1958.1,1957.6,3.34706739]
[1770984926441,0.4759921,1958.0,1957.5,0.001]
[1770984927635,1.27687828,1957.9,1957.5,0.001]
[1770984928434,1.75285369,1958.0,1957.5,0.001]
[1770984930152,1.75285369,1958.0,1957.7,0.001]
[1770984932623,1.27876979,1958.1,1957.7,0.001]
[1770984933483,1.73553509,1958.1,1957.7,0.001]
[1770984933620,0.4567653,1958.0,1957.7,0.001]
[1770984933814,1.10325367,1957.9,1957.7,0.001]
[1770984934019,1.10325367,1957.8,1957.7,0.001]
[1770984934252,1.10325367,1957.8,1957.5,0.001]
[1770984934460,2.3802624,1957.7,1957.5,0.001]
[1770984934648,1.10318161,1957.6,1957.5,0.001]
[1770984935763,1.57370966,1957.6,1957.2,0.001]
[1770984936059,1.10318161,1957.5,1957.2,0.001]
[1770984936347,1.74764693,1957.6,1957.2,0.001]
[1770984936536,1.1026279,1957.5,1957.2,0.001]
[1770984936752,1.74764693,1957.6,1957.2,0.001]
[1770984936925,1.10291319,1957.5,1957.2,0.001]
[1770984937118,1.10291319,1957.4,1957.2,0.001]
[1770984937330,1.27703753,1957.7,1957.2,0.49178105]
[1770984937536,1.10247059,1957.6,1957.2,0.49178105]
[1770984937778,1.10247059,1957.5,1957.2,0.49178105]
[1770984937955,1.10247059,1957.4,1957.2,0.49178105]
[1770984938157,1.27703753,1957.7,1957.2,0.49178105]
[1770984938352,1.10217581,1957.6,1957.2,0.49178105]
[1770984938558,1.10217581,1957.5,1957.2,0.49178105]
[1770984938759,1.27703753,1957.7,1957.2,0.49178105]
[1770984939069,1.10243094,1957.6,1957.2,0.49178105]
[1770984939271,1.10243094,1957.5,1957.2,0.49178105]
[1770984939568,1.27703753,1957.7,1957.1,0.001]
[1770984939569,8.34596138,1957.4,1957.1,0.001]
[1770984939767,1.10225491,1957.3,1957.1,0.001]
[1770984939976,0.47052805,1957.4,1957.1,0.001]
[1770984940174,1.10231095,1957.3,1957.1,0.001]
[1770984940483,8.94170647,1957.6,1957.1,0.001]
[1770984940766,1.10230748,1957.5,1957.1,0.49178105]
[1770984940987,1.10230748,1957.4,1957.1,0.49178105]
[1770984941172,1.698,1957.6,1957.1,0.49178105]
[1770984941369,1.10194142,1957.5,1957.1,0.49178105]
[1770984941572,1.74753706,1957.7,1957.1,0.001]
[1770984941769,7.87510133,1957.6,1957.1,0.001]
[1770984942074,1.10192291,1957.5,1957.1,0.001]
[1770984942644,1.2772697,1957.3,1957.2,0.001]
[1770984942848,1.10192291,1957.3,1957.2,0.001]
[1770984943148,1.2771392,1957.5,1957.2,0.001]
[1770984943370,1.10144882,1957.4,1957.2,0.001]
[1770984943671,1.10149994,1957.3,1957.2,0.001]
[1770984944538,0.47052805,1957.4,1957.2,0.001]
[1770984944789,2.37848564,1957.3,1957.2,0.001]
[1770984944955,1.27721097,1957.4,1957.2,0.001]
[1770984945274,1.2771392,1957.5,1957.2,0.001]
[1770984945478,1.10099866,1957.4,1957.2,0.001]
[1770984945779,5.11034747,1957.6,1957.2,0.001]
[1770984945780,2.98307915,1957.6,1957.2,0.001]
[1770984945982,1.10098851,1957.5,1957.2,0.001]
[1770984946164,1.10098851,1957.4,1957.2,0.001]
[1770984946347,2.98307915,1957.6,1957.2,0.001]
[1770984946555,1.10057893,1957.5,1957.2,0.001]
[1770984946770,2.98307915,1957.6,1957.2,0.001]
[1770984947084,1.10043224,1957.5,1957.2,0.49178105]
[1770984947378,1.706,1957.6,1957.2,0.49178105]
[1770984947583,1.10028655,1957.5,1957.2,0.49178105]
[1770984947881,2.98308625,1957.6,1957.2,0.49178105]
[1770984948085,1.10016773,1957.5,1957.2,0.49178105]
[1770984948253,2.98308625,1957.6,1957.2,0.49178105]
[1770984948585,1.10013994,1957.5,1957.2,0.49178105]
[1770984948785,2.98308625,1957.6,1957.2,0.49178105]
[1770984948979,1.10018079,1957.5,1957.2,0.001]
[1770984949182,3.4536143,1957.6,1957.2,0.001]
[1770984949483,1.10038935,1957.5,1957.2,0.001]
[1770984949662,3.4536143,1957.6,1957.2,0.001]
[1770984949863,1.10057845,1957.5,1957.2,0.001]
[1770984950077,1.10057845,1957.4,1957.2,0.001]
[1770984950376,3.4536143,1957.6,1957.2,0.001]
[1770984950578,1.10076735,1957.5,1957.2,0.001]
[1770984950790,1.10076735,1957.4,1957.2,0.001]
[1770984951001,3.4536143,1957.6,1957.2,0.001]
[1770984951287,1.10076738,1957.5,1957.2,0.001]
[1770984951459,1.10076738,1957.4,1957.2,0.001]
[1770984951658,3.4536143,1957.6,1957.2,0.001]
[1770984951985,1.10079519,1957.5,1957.2,0.001]
[1770984952292,1.10079519,1957.4,1957.2,0.001]
[1770984952499,1.27908625,1957.6,1957.2,0.001]
[1770984952666,0.99782345,1957.5,1957.3,0.49078105]
[1770984952861,0.002,1957.6,1957.3,0.49078105]
[1770984953265,0.002,1957.6,1957.2,0.001]
[1770984957066,0.002,1957.6,1957.3,0.001]
[1770984957371,0.002,1957.4,1957.3,0.001]
[1770984958521,0.47252805,1957.4,1957.0,0.00153886]
[1770984958712,0.002,1957.4,1957.0,0.00153886]
[1770984959892,1.27920445,1957.4,1957.0,0.00153886]
[1770984960811,8.51065188,1957.4,1957.0,0.00153886]
[1770984961494,1.73157679,1957.4,1957.0,0.00153886]
[1770984962298,1.27920445,1957.4,1957.0,0.00153886]
[1770984962867,8.51065188,1957.4,1957.0,0.00153886]
[1770984963076,1.27920445,1957.4,1957.0,0.00153886]
[1770984963281,1.73157679,1957.4,1957.0,0.00153886]
[1770984964509,0.002,1957.4,1957.0,0.4991999]
[1770984964813,1.10367628,1957.3,1957.0,0.4991999]
[1770984965022,1.10367628,1957.2,1957.0,0.4991999]
[1770984965193,1.10367628,1957.1,1957.0,0.4991999]
[1770984967810,1.10367628,1957.1,1957.0,1.7766654]
[1770984967992,0.002,1957.4,1957.1,0.49766104]
[1770984968922,1.10367628,1957.3,1957.0,0.00153886]
[1770984970214,1.10367628,1957.3,1957.1,0.001]
[1770984972218,1.27924702,1957.4,1957.1,0.001]
[1770984972419,1.10367628,1957.3,1957.1,0.001]
[1770984976431,1.10367628,1957.2,1957.0,0.00153886]
[1770984977097,1.10367628,1957.1,1957.0,0.00153886]
[1770984977598,0.45237234,1957.2,1957.0,0.00153886]
[1770984977801,2.38107651,1957.1,1957.0,0.00153886]
[1770984978325,0.45237234,1957.0,1956.9,0.001]
[1770984978497,1.10367628,1957.0,1956.8,0.001]
[1770984979111,1.27740023,1957.1,1956.8,0.001]
[1770984979326,1.10367628,1957.0,1956.8,0.001]
[1770984980135,1.10391282,1956.9,1956.8,0.001]
[1770984980332,1.10391282,1956.9,1956.8,0.49866104]
[1770984980632,3.01731197,1957.3,1956.8,0.49866104]
[1770984980806,2.2074115,1957.2,1956.8,0.49866104]
[1770984981007,1.10373522,1957.1,1956.8,0.49866104]
[1770984981219,1.10373522,1957.0,1956.8,0.49866104]
[1770984981418,1.10367628,1957.1,1956.8,0.49866104]
[1770984981614,1.10367129,1957.0,1956.8,0.49866104]
[1770984981823,1.10367628,1957.1,1956.8,0.49866104]
[1770984982029,1.10367116,1957.0,1956.9,0.001]
[1770984982407,1.10567116,1957.0,1956.9,0.001]
[1770984983832,1.10567116,1957.0,1956.5,0.49766104]
[1770984983833,2.20934744,1957.0,1956.5,1.77540188]
[1770984984034,1.10367116,1956.9,1956.7,0.49766104]
[1770984984332,1.10567628,1957.0,1956.7,0.49766104]
[1770984984922,1.10370018,1956.9,1956.7,0.49766104]
[1770984985236,1.10567628,1957.0,1956.7,0.49766104]
[1770984985432,0.002,1957.0,1956.7,0.49766104]
[1770984985618,1.10377609,1956.9,1956.7,0.49766104]
[1770984985822,0.002,1957.0,1956.7,0.49766104]
[1770984986155,1.10567628,1957.0,1956.8,1.77525711]
[1770984986362,1.10567628,1957.0,1956.8,0.49766104]
[1770984986857,1.10567628,1957.0,1956.6,5.11067262]
[1770984987060,1.1038876,1956.9,1956.7,1.77531895]
[1770984987267,1.10567628,1957.0,1956.7,1.77531895]
[1770984987428,1.10400555,1956.9,1956.7,1.77531895]
[1770984987629,1.10567628,1957.0,1956.7,1.77531895]
[1770984988036,1.10399955,1956.9,1956.7,1.77531895]
[1770984988253,1.10567628,1957.0,1956.7,1.77531895]
[1770984988432,1.10415893,1956.9,1956.7,1.77531895]
[1770984988632,1.10567628,1957.0,1956.7,1.77531895]
[1770984988861,1.104159,1956.9,1956.7,1.77531895]
[1770984989062,1.10567628,1957.0,1956.7,1.77531895]
[1770984989251,1.1041729,1956.9,1956.7,1.27765791]
[1770984989451,1.10567628,1957.0,1956.7,1.27765791]
[1770984989754,1.10418095,1956.9,1956.7,1.27765791]
[1770984989956,1.10567628,1957.0,1956.7,1.27765791]
[1770984990142,1.10418474,1956.9,1956.6,1.7753877]
[1770984990462,1.10567628,1957.0,1956.6,1.7753877]
[1770984990639,1.10419385,1956.9,1956.6,1.27772666]
[1770984990961,1.10567628,1957.0,1956.6,1.27772666]
[1770984991131,1.10419406,1956.9,1956.6,1.27772666]
[1770984991333,1.10567628,1957.0,1956.6,1.27772666]
[1770984991540,1.10412932,1956.9,1956.6,1.27772666]
[1770984991860,1.10567628,1957.0,1956.6,1.27772666]
[1770984992062,2.20782052,1956.9,1956.6,1.27772666]
[1770984992230,1.10367628,1956.9,1956.6,1.27772666]
[1770984992662,1.10367628,1956.9,1956.5,1.73882357]
[1770984994272,0.45523686,1956.9,1956.4,3.34285728]
[1770984994434,1.10367628,1956.8,1956.4,3.34285728]
[1770984994948,1.10367628,1956.7,1956.4,3.34285728]
[1770984995147,1.10367628,1956.9,1956.6,0.001]
[1770984995666,1.10367628,1956.8,1956.6,0.001]
[1770984996136,1.10367628,1956.7,1956.6,0.001]
[1770984996339,1.09819522,1956.7,1956.6,0.001]
[1770985002181,0.002,1956.9,1956.6,0.001]
[1770985002382,1.09819522,1956.7,1956.6,0.001]
[1770985006297,0.002,1956.9,1956.6,0.001]
[1770985006478,1.10521109,1956.8,1956.6,0.001]
[1770985006677,0.002,1956.9,1956.6,0.001]
[1770985006877,1.10521515,1956.8,1956.6,0.001]
[1770985007089,0.002,1956.9,1956.6,0.001]
[1770985007395,1.10536215,1956.8,1956.6,0.001]
[1770985007567,0.002,1956.9,1956.6,0.001]
[1770985007770,1.10536252,1956.8,1956.6,0.001]
[1770985008086,0.002,1956.9,1956.7,0.001]
[1770985008285,1.10535497,1956.8,1956.7,0.001]
[1770985008896,0.002,1956.9,1956.7,0.5008369]
[1770985009897,0.002,1956.9,1956.7,0.001]
[1770985010271,1.10525229,1956.8,1956.7,0.001]
[1770985010470,0.002,1956.9,1956.7,0.001]
[1770985012271,1.10530666,1956.8,1956.6,0.001]
[1770985012471,0.4542302,1956.9,1956.6,0.001]
[1770985012472,1.10530666,1956.7,1956.6,0.001]
[1770985015104,2.38296802,1956.7,1956.5,0.001]
[1770985015310,1.10530666,1956.6,1956.5,0.001]
[1770985015508,1.10530666,1956.6,1956.2,0.001]
[1770985015708,1.10530666,1956.5,1956.2,0.001]
[1770985015912,1.10530666,1956.4,1956.2,0.001]
[1770985016113,0.4522302,1956.6,1956.2,0.001]
[1770985016309,1.10466029,1956.5,1956.2,0.001]
[1770985016515,0.4522302,1956.6,1956.2,0.001]
[1770985016807,1.10466038,1956.5,1956.2,0.001]
[1770985016985,1.72998329,1956.6,1956.2,0.001]
[1770985017189,1.1046629,1956.5,1956.2,0.001]
[1770985017387,1.72998329,1956.6,1956.2,0.001]
[1770985017588,1.10426663,1956.5,1956.2,0.001]
[1770985017787,1.72998329,1956.6,1956.2,0.001]
[1770985018120,1.10426844,1956.5,1956.2,0.001]
[1770985018414,1.72998329,1956.6,1956.2,0.001]
[1770985018714,1.10397665,1956.5,1956.2,0.001]
[1770985018899,2.83410423,1956.4,1956.0,0.00153886]
[1770985019106,1.73010546,1956.4,1956.0,0.00153886]
[1770985020418,0.4522302,1956.3,1956.0,0.00153886]
[1770985021796,0.47058995,1956.6,1956.0,0.49208183]
[1770985022000,1.10327517,1956.5,1956.0,0.49208183]
[1770985022306,0.47058995,1956.8,1956.0,0.49208183]
[1770985022507,1.10305146,1956.7,1956.2,0.49054297]
[1770985022714,1.10505146,1956.6,1956.2,0.49054297]
[1770985023018,0.002,1956.6,1956.3,0.49054297]
[1770985023724,0.002,1956.6,1956.3,1.76840434]
[1770985023889,0.002,1956.6,1956.3,1.27786137]
[1770985025192,0.002,1956.6,1956.4,0.49054297]
[1770985025388,0.002,1956.9,1956.4,0.49054297]
[1770985025828,0.002,1956.9,1956.6,0.49054297]
[1770985027021,0.002,1956.9,1956.5,1.27779197]
[1770985027243,0.002,1956.9,1956.5,1.76833494]
[1770985027597,0.002,1956.9,1956.5,3.38079197]
[1770985028536,0.002,1956.9,1956.6,0.49054297]
[1770985028940,0.002,1957.1,1956.6,0.49054297]
[1770985029999,0.002,1957.1,1956.7,1.76820433]
[1770985030189,0.002,1957.1,1956.8,0.49054297]
[1770985032122,0.002,1957.1,1956.9,1.76807375]
[1770985032318,0.002,1957.4,1957.0,0.49054297]
[1770985034049,0.002,1957.4,1957.1,1.27740023]
[1770985035948,0.002,1957.4,1957.0,1.76795684]
[1770985035949,0.002,1957.1,1957.0,1.76795684]
[1770985036950,0.002,1957.1,1957.0,1.27741387]
[1770985037249,0.002,1957.1,1956.9,3.38249718]
[1770985039449,0.002,1957.1,1956.9,2.105]
[1770985040046,0.002,1957.1,1956.9,3.38252441]
[1770985040348,0.002,1957.1,1956.9,3.87306738]
[1770985040548,0.002,1957.1,1956.9,3.38252441]
[1770985041049,0.002,1957.1,1957.0,0.49054297]
[1770985043658,0.002,1957.1,1957.0,1.76800847]
[1770985044044,0.002,1957.1,1956.7,5.11045424]
[1770985044341,0.002,1957.1,1956.8,2.116]
[1770985047562,0.002,1957.1,1956.9,1.27753078]
[1770985048284,0.002,1957.1,1956.8,1.27758991]
[1770985048436,0.002,1957.1,1956.9,2.12]
[1770985049267,0.002,1957.1,1956.9,2.121]
[1770985049564,0.002,1957.0,1956.9,2.121]
[1770985051184,0.002,1957.0,1956.9,3.39853078]
[1770985051959,0.002,1957.0,1956.9,2.121]
[1770985053375,0.002,1957.0,1956.9,3.39853078]
[1770985053781,0.002,1957.0,1956.9,2.121]
[1770985054367,0.47327037,1957.0,1956.9,0.001]
[1770985055895,0.002,1957.0,1956.9,0.001]
[1770985056890,0.002,1957.0,1956.9,0.46343011]
[1770985057375,0.002,1957.0,1956.9,0.001]
[1770985057977,0.002,1957.0,1956.9,0.46343011]
[1770985058290,0.002,1957.0,1956.9,0.001]
[1770985059760,0.002,1957.0,1956.9,1.27853078]
[1770985061620,0.002,1957.4,1956.9,1.74096089]
[1770985061773,1.10425976,1957.3,1957.0,2.128]
[1770985061968,0.002,1957.4,1957.0,2.128]
[1770985062906,0.002,1957.4,1957.0,2.59043011]
[1770985064485,0.002,1957.4,1957.1,1.27740023]
[1770985064888,0.002,1957.4,1957.1,1.73983034]
[1770985066202,0.002,1957.4,1957.1,1.27740023]
[1770985068922,0.002,1957.4,1957.2,0.46243011]
[1770985069125,0.002,1957.6,1957.3,2.59343011]
[1770985069427,0.002,1957.9,1957.4,0.46243011]
[1770985069703,0.002,1957.9,1957.5,0.46243011]
[1770985070017,0.002,1957.9,1957.6,2.133]
[1770985070212,0.002,1957.9,1957.6,2.59543011]
[1770985070408,0.002,1958.1,1957.7,0.46243011]
[1770985070705,0.002,1958.1,1957.8,1.73937361]
[1770985070875,0.002,1958.1,1957.9,2.133]
[1770985071516,0.4635884,1958.1,1957.9,2.133]
[1770985074508,0.002,1958.0,1957.9,2.133]
[1770985076529,0.002,1958.0,1957.9,3.40987828]
[1770985079038,0.002,1958.0,1957.9,2.133]
[1770985081855,0.002,1958.0,1957.9,3.40987828]
[1770985082441,0.002,1958.2,1957.9,3.40987828]
[1770985083355,0.002,1958.2,1957.9,3.90202038]
[1770985083674,0.002,1958.5,1958.1,0.4921421]
[1770985083844,0.46767911,1958.8,1958.2,2.6271421]
[1770985084749,0.002,1958.8,1958.2,2.6271421]
[1770985084969,0.002,1958.8,1958.3,1.27661747]
[1770985085283,0.002,1958.8,1958.3,1.76875957]
[1770985086043,0.002,1958.8,1958.4,0.4921421]
[1770985086242,0.002,1958.8,1958.5,2.135]
[1770985086485,0.002,1958.8,1958.5,2.6271421]
[1770985087174,0.002,1958.7,1958.6,1.27642193]
[1770985087380,0.002,1958.9,1958.6,1.76856403]
[1770985091248,0.002,1958.9,1958.6,1.27642193]
[1770985091449,0.002,1958.9,1958.7,0.4921421]
[1770985091672,0.002,1958.9,1958.8,2.143]
[1770985092550,0.002,1958.9,1958.6,1.27642193]
[1770985092551,0.46767911,1958.9,1958.6,1.27642193]
[1770985092855,0.46767911,1958.9,1958.7,2.143]
[1770985093254,0.002,1958.9,1958.7,2.143]
[1770985093872,0.002,1958.9,1958.7,3.41934754]
[1770985095084,0.002,1959.2,1958.9,1.27622645]
[1770985095287,2.20167911,1959.5,1958.9,1.27622645]
[1770985095777,0.46567911,1959.5,1959.0,2.144]
[1770985096003,0.002,1959.6,1959.0,2.144]
[1770985096506,0.002,1959.6,1959.0,2.6361421]
[1770985097608,0.002,1959.6,1959.1,1.27609616]
[1770985097768,0.46767911,1959.6,1959.0,2.144]
[1770985097974,0.46767911,1959.6,1959.0,3.42015405]
[1770985098484,0.002,1959.6,1959.1,0.4921421]
[1770985099474,0.002,1959.6,1959.3,0.4921421]
[1770985099680,0.002,1959.6,1959.4,2.6351421]
[1770985100202,0.002,1959.5,1959.4,2.6351421]
[1770985100408,0.002,1959.9,1959.4,2.6351421]
[1770985101797,0.002,1959.9,1959.4,3.41885041]
[1770985103008,0.002,1959.9,1959.5,2.143]
[1770985104594,0.002,1959.9,1959.5,3.41879501]
[1770985106000,0.002,1959.9,1959.5,2.143]
[1770985106688,0.002,1959.9,1959.5,3.41883279]
[1770985107101,0.002,1959.9,1959.5,2.143]
[1770985107724,0.002,1959.9,1959.5,3.41883402]
[1770985108505,0.002,1959.9,1959.5,3.91097612]
[1770985108725,0.002,1959.9,1959.6,1.27575564]
[1770985109223,0.002,1959.9,1959.6,1.76789774]
[1770985110509,0.002,1959.9,1959.4,0.4921421]
[1770985110834,0.48615175,1959.8,1959.5,1.705]
[1770985111903,0.002,1959.9,1959.5,1.705]
[1770985112604,0.002,1959.9,1959.6,1.27577056]
[1770985112833,0.002,1959.8,1959.6,1.27577056]
[1770985113217,0.002,1959.8,1959.5,2.98178299]
[1770985113417,0.002,1959.8,1959.5,1.706]
[1770985113617,0.002,1959.8,1959.5,0.001]
[1770985113618,0.48815175,1959.8,1959.5,0.001]
[1770985115314,1.76380944,1959.8,1959.5,0.001]
[1770985116207,0.48815175,1959.8,1959.5,0.001]
[1770985117138,1.76380264,1959.8,1959.5,0.001]
[1770985118032,0.48815175,1959.8,1959.5,0.001]
[1770985118234,0.002,1959.8,1959.5,0.001]
[1770985121363,0.4869163,1959.8,1959.5,0.001]
[1770985122612,1.76255917,1959.8,1959.5,0.001]
[1770985124149,0.4869163,1959.8,1959.5,0.001]
[1770985124740,0.002,1959.8,1959.5,0.001]
[1770985125255,0.002,1959.8,1959.6,0.001]
[1770985125554,0.002,1959.7,1959.6,0.001]
[1770985128415,0.002,1959.7,1959.6,0.46174184]